[Event "Late-Titled-Tuesday-Blitz-March-26-2024"]
[Site "Chess.com"]
[Date "2024.03.26"]
[Round "2"]
[White "GiorgianBarbosa"]
[Black "Iuckyducky"]
[Result "1-0"]
[WhiteElo "2511"]
[BlackElo "2294"]
[TimeControl "180+1"]
[EndTime "14:17:16 PDT"]
[Termination "GiorgianBarbosa won by resignation"]

1. e4 {[%clk 0:02:58.9]} 1... c5 {[%clk 0:02:58]} 2. Nf3 {[%clk 0:02:59]} 2...
Nc6 {[%clk 0:02:52.5]} 3. d4 {[%clk 0:02:57.7]} 3... cxd4 {[%clk 0:02:52.8]} 4.
Nxd4 {[%clk 0:02:58.6]} 4... Nf6 {[%clk 0:02:52.4]} 5. Nc3 {[%clk 0:02:58.3]}
5... e5 {[%clk 0:02:53]} 6. Ndb5 {[%clk 0:02:58.4]} 6... d6 {[%clk 0:02:53.1]}
7. a4 {[%clk 0:02:56.8]} 7... a6 {[%clk 0:02:50.2]} 8. Na3 {[%clk 0:02:56.4]}
8... Be6 {[%clk 0:02:50]} 9. Bc4 {[%clk 0:02:54.7]} 9... Be7 {[%clk 0:02:25.9]}
10. O-O {[%clk 0:02:53.6]} 10... O-O {[%clk 0:02:24.8]} 11. Re1 {[%clk
0:02:38.4]} 11... Nd4 {[%clk 0:02:14.5]} 12. Be3 {[%clk 0:02:18.6]} 12... Qb6
{[%clk 0:00:45.7]} 13. Rb1 {[%clk 0:02:02.3]} 13... Rac8 {[%clk 0:00:39.4]} 14.
Nd5 {[%clk 0:01:19.2]} 14... Bxd5 {[%clk 0:00:26.9]} 15. Bxd5 {[%clk 0:01:20.1]}
15... Nxd5 {[%clk 0:00:20.4]} 16. exd5 {[%clk 0:01:21]} 16... Qa5 {[%clk
0:00:17]} 17. Bxd4 {[%clk 0:01:20.7]} 17... Qxa4 {[%clk 0:00:03.6]} 18. Be3
{[%clk 0:01:16.1]} 18... b5 {[%clk 0:00:03.9]} 19. c3 {[%clk 0:01:16]} 19... Bf6
{[%clk 0:00:03.2]} 20. Nc2 {[%clk 0:01:15.8]} 20... g6 {[%clk 0:00:03.4]} 21.
Nb4 {[%clk 0:01:15.8]} 21... Qb3 {[%clk 0:00:02.4]} 22. Nc6 {[%clk 0:01:15.5]}
1-0

[Event "Late-Titled-Tuesday-Blitz-March-26-2024"]
[Site "Chess.com"]
[Date "2024.03.26"]
[Round "2"]
[White "Aragon"]
[Black "ploxoi"]
[Result "0-1"]
[WhiteElo "2059"]
[BlackElo "2432"]
[TimeControl "180+1"]
[EndTime "14:17:23 PDT"]
[Termination "ploxoi won by resignation"]

1. e4 {[%clk 0:03:00.9]} 1... c6 {[%clk 0:02:57.2]} 2. Nf3 {[%clk 0:03:00.1]}
2... d5 {[%clk 0:02:57.4]} 3. d3 {[%clk 0:03:00.4]} 3... dxe4 {[%clk 0:02:53.7]}
4. dxe4 {[%clk 0:03:01.3]} 4... Qxd1+ {[%clk 0:02:53.4]} 5. Kxd1 {[%clk
0:03:02.2]} 5... Bg4 {[%clk 0:02:53.1]} 6. Bd3 {[%clk 0:03:01.7]} 6... Nd7
{[%clk 0:02:53.1]} 7. Ke2 {[%clk 0:03:01.9]} 7... Ne5 {[%clk 0:02:52.5]} 8. Nd2
{[%clk 0:03:00.9]} 8... O-O-O {[%clk 0:02:50.3]} 9. h3 {[%clk 0:03:00.6]} 9...
Nxd3 {[%clk 0:02:36.6]} 10. cxd3 {[%clk 0:02:57.9]} 10... Bh5 {[%clk 0:02:36.2]}
11. a4 {[%clk 0:02:53.5]} 11... e6 {[%clk 0:02:36.3]} 12. g4 {[%clk 0:02:49.5]}
12... Bg6 {[%clk 0:02:36]} 13. Nc4 {[%clk 0:02:49.8]} 13... f6 {[%clk
0:02:21.8]} 14. Be3 {[%clk 0:02:42.6]} 14... a6 {[%clk 0:02:19.8]} 15. Nd4
{[%clk 0:02:25.8]} 15... Bf7 {[%clk 0:02:09.6]} 16. Rhc1 {[%clk 0:02:22.8]}
16... Kb8 {[%clk 0:02:05.7]} 17. Na5 {[%clk 0:02:05.9]} 17... Ne7 {[%clk
0:02:00.9]} 18. b4 {[%clk 0:01:59]} 18... e5 {[%clk 0:01:59.3]} 19. Ndb3 {[%clk
0:01:51.2]} 19... Ng6 {[%clk 0:01:52.4]} 20. b5 {[%clk 0:01:50.3]} 20... cxb5
{[%clk 0:01:40.4]} 21. axb5 {[%clk 0:01:49.4]} 21... axb5 {[%clk 0:01:37.2]} 22.
Bb6 {[%clk 0:01:28.2]} 22... Rd7 {[%clk 0:01:31.3]} 23. Nc5 {[%clk 0:01:09.5]}
23... Bxc5 {[%clk 0:01:30]} 24. Bxc5 {[%clk 0:01:08.3]} 24... Rhd8 {[%clk
0:01:24.6]} 25. Ra3 {[%clk 0:00:57.2]} 25... Nf4+ {[%clk 0:01:23.1]} 26. Kf1
{[%clk 0:00:54.8]} 26... Rxd3 {[%clk 0:01:15.6]} 27. Rxd3 {[%clk 0:00:51.9]}
27... Rxd3 {[%clk 0:01:05]} 28. Bb6 {[%clk 0:00:43.5]} 28... Rxh3 {[%clk
0:00:53.1]} 29. f3 {[%clk 0:00:38.5]} 29... Rh1+ {[%clk 0:00:48.7]} 0-1

[Event "Late-Titled-Tuesday-Blitz-March-26-2024"]
[Site "Chess.com"]
[Date "2024.03.26"]
[Round "2"]
[White "omeed_87"]
[Black "aceontheturn"]
[Result "1/2-1/2"]
[WhiteElo "2421"]
[BlackElo "2741"]
[TimeControl "180+1"]
[EndTime "14:17:24 PDT"]
[Termination "Game drawn by repetition"]

1. d4 {[%clk 0:03:00.9]} 1... d5 {[%clk 0:02:59.5]} 2. Nf3 {[%clk 0:02:58.8]}
2... e6 {[%clk 0:02:59.5]} 3. Bf4 {[%clk 0:02:59]} 3... c5 {[%clk 0:02:59.2]} 4.
e3 {[%clk 0:02:58.2]} 4... Nc6 {[%clk 0:02:59.4]} 5. Nbd2 {[%clk 0:02:58]} 5...
cxd4 {[%clk 0:02:59.4]} 6. exd4 {[%clk 0:02:57.9]} 6... Bd6 {[%clk 0:03:00.1]}
7. Bg3 {[%clk 0:02:54.9]} 7... Nge7 {[%clk 0:03:00.1]} 8. c3 {[%clk 0:02:53.4]}
8... O-O {[%clk 0:03:00]} 9. Bd3 {[%clk 0:02:52.8]} 9... Nf5 {[%clk 0:02:59]}
10. Qe2 {[%clk 0:02:52.4]} 10... Bd7 {[%clk 0:02:57.3]} 11. Bxd6 {[%clk
0:02:47.3]} 11... Nxd6 {[%clk 0:02:54.5]} 12. h4 {[%clk 0:02:43.3]} 12... h6
{[%clk 0:02:49.8]} 13. Ne5 {[%clk 0:02:17.4]} 13... Nxe5 {[%clk 0:02:42.4]} 14.
dxe5 {[%clk 0:02:17.5]} 14... Nf5 {[%clk 0:02:41.1]} 15. Nf3 {[%clk 0:01:50.1]}
15... Ne7 {[%clk 0:02:35.8]} 16. g4 {[%clk 0:01:46.6]} 16... Ng6 {[%clk
0:02:23.8]} 17. Qe3 {[%clk 0:01:37.7]} 17... d4 {[%clk 0:02:22.5]} 18. Nxd4
{[%clk 0:01:23.5]} 18... Bc6 {[%clk 0:02:22.4]} 19. f3 {[%clk 0:01:08.1]} 19...
Qd5 {[%clk 0:02:16]} 20. Bxg6 {[%clk 0:01:04.9]} 20... fxg6 {[%clk 0:02:15.5]}
21. O-O-O {[%clk 0:00:46.3]} 21... Qxa2 {[%clk 0:02:12.9]} 22. Qd3 {[%clk
0:00:32.5]} 22... Ba4 {[%clk 0:02:08.1]} 23. Rd2 {[%clk 0:00:27.3]} 23... Rad8
{[%clk 0:01:57.6]} 24. Qxg6 {[%clk 0:00:23.1]} 24... Rxd4 {[%clk 0:01:57.9]} 25.
Rxd4 {[%clk 0:00:21.7]} 25... Rc8 {[%clk 0:01:40.2]} 26. Rxa4 {[%clk 0:00:19.4]}
26... Qxa4 {[%clk 0:01:36.6]} 27. Qxe6+ {[%clk 0:00:18.7]} 27... Kh7 {[%clk
0:01:37.2]} 28. Qxc8 {[%clk 0:00:19]} 28... Qa1+ {[%clk 0:01:36.7]} 29. Kd2
{[%clk 0:00:18.1]} 29... Qxh1 {[%clk 0:01:37.6]} 30. Qf5+ {[%clk 0:00:18]} 30...
Kh8 {[%clk 0:01:37.7]} 31. h5 {[%clk 0:00:18]} 31... Qg2+ {[%clk 0:01:34.6]} 32.
Kc1 {[%clk 0:00:17.8]} 32... Qf1+ {[%clk 0:01:33.5]} 33. Kc2 {[%clk 0:00:18.1]}
33... Qe2+ {[%clk 0:01:33.1]} 34. Kb3 {[%clk 0:00:18.1]} 34... Qb5+ {[%clk
0:01:33.4]} 35. Kc2 {[%clk 0:00:18.5]} 35... Qe2+ {[%clk 0:01:33.4]} 36. Kb1
{[%clk 0:00:18.7]} 36... Qd1+ {[%clk 0:01:33.9]} 37. Ka2 {[%clk 0:00:18.5]}
37... Qa4+ {[%clk 0:01:34.5]} 38. Kb1 {[%clk 0:00:18.9]} 38... Qd1+ {[%clk
0:01:35.4]} 39. Ka2 {[%clk 0:00:17.9]} 39... Qa4+ {[%clk 0:01:36.3]} 40. Kb1
{[%clk 0:00:17.6]} 40... Qd1+ {[%clk 0:01:37.2]} 1/2-1/2

[Event "Late-Titled-Tuesday-Blitz-March-26-2024"]
[Site "Chess.com"]
[Date "2024.03.26"]
[Round "2"]
[White "Fonsofan"]
[Black "Dontmesswithme_2"]
[Result "1-0"]
[WhiteElo "2732"]
[BlackElo "2406"]
[TimeControl "180+1"]
[EndTime "14:17:29 PDT"]
[Termination "Fonsofan won by checkmate"]

1. b4 {[%clk 0:02:58.6]} 1... d5 {[%clk 0:02:59.4]} 2. e3 {[%clk 0:02:58]} 2...
e5 {[%clk 0:02:57.5]} 3. Bb2 {[%clk 0:02:58]} 3... Bd6 {[%clk 0:02:57.1]} 4. Nf3
{[%clk 0:02:57.2]} 4... Nd7 {[%clk 0:02:56.4]} 5. c4 {[%clk 0:02:55.7]} 5... c6
{[%clk 0:02:55.9]} 6. Nc3 {[%clk 0:02:48.6]} 6... Ngf6 {[%clk 0:02:55.2]} 7.
cxd5 {[%clk 0:02:43.4]} 7... cxd5 {[%clk 0:02:56.1]} 8. Qb3 {[%clk 0:02:43.7]}
8... e4 {[%clk 0:02:04.2]} 9. Nd4 {[%clk 0:02:35.6]} 9... Nb6 {[%clk 0:02:03.2]}
10. a4 {[%clk 0:02:32.3]} 10... a5 {[%clk 0:01:55.6]} 11. bxa5 {[%clk
0:02:29.1]} 11... Rxa5 {[%clk 0:01:53.3]} 12. Bb5+ {[%clk 0:02:25.4]} 12... Bd7
{[%clk 0:01:52.2]} 13. Nf5 {[%clk 0:02:25.8]} 13... Be5 {[%clk 0:01:40.2]} 14.
Nxe4 {[%clk 0:02:19.8]} 14... Bxb5 {[%clk 0:01:11.3]} 15. Bxe5 {[%clk
0:02:07.9]} 15... Bxa4 {[%clk 0:01:07.5]} 16. Nxf6+ {[%clk 0:01:04.8]} 16...
gxf6 {[%clk 0:01:02.4]} 17. Qb4 {[%clk 0:00:59.2]} 17... fxe5 {[%clk 0:00:29.3]}
18. Qxa5 {[%clk 0:00:56.3]} 18... Bc6 {[%clk 0:00:29.6]} 19. Qb4 {[%clk
0:00:45.5]} 19... Nc4 {[%clk 0:00:29.6]} 20. d3 {[%clk 0:00:43.6]} 20... Qb6
{[%clk 0:00:24.7]} 21. Ra8+ {[%clk 0:00:40.8]} 21... Kd7 {[%clk 0:00:24.7]} 22.
Qe7# {[%clk 0:00:39.3]} 1-0

[Event "Late-Titled-Tuesday-Blitz-March-26-2024"]
[Site "Chess.com"]
[Date "2024.03.26"]
[Round "2"]
[White "Zampronha1971"]
[Black "Gentlejimmy7"]
[Result "0-1"]
[WhiteElo "2364"]
[BlackElo "2678"]
[TimeControl "180+1"]
[EndTime "14:17:29 PDT"]
[Termination "Gentlejimmy7 won on time"]

1. e4 {[%clk 0:03:00.9]} 1... c6 {[%clk 0:02:59.8]} 2. d4 {[%clk 0:03:00.3]}
2... d5 {[%clk 0:03:00.7]} 3. e5 {[%clk 0:03:00]} 3... c5 {[%clk 0:02:56.3]} 4.
Nf3 {[%clk 0:02:58.1]} 4... Nc6 {[%clk 0:02:55.8]} 5. c4 {[%clk 0:02:56.9]} 5...
cxd4 {[%clk 0:02:52.1]} 6. Nxd4 {[%clk 0:02:54]} 6... dxc4 {[%clk 0:02:49.5]} 7.
Nxc6 {[%clk 0:02:52.7]} 7... Qxd1+ {[%clk 0:02:50.4]} 8. Kxd1 {[%clk 0:02:52.4]}
8... bxc6 {[%clk 0:02:48.8]} 9. Bxc4 {[%clk 0:02:52.2]} 9... Bf5 {[%clk
0:02:42.5]} 10. Nc3 {[%clk 0:02:49.1]} 10... e6 {[%clk 0:02:41.4]} 11. Ke2
{[%clk 0:02:48.5]} 11... Ne7 {[%clk 0:02:40.5]} 12. Bd2 {[%clk 0:02:39.2]} 12...
Nd5 {[%clk 0:02:40.5]} 13. Rac1 {[%clk 0:02:32.2]} 13... Be7 {[%clk 0:02:35.8]}
14. Nxd5 {[%clk 0:02:12.6]} 14... exd5 {[%clk 0:02:25.3]} 15. Bd3 {[%clk
0:02:11.5]} 15... Bxd3+ {[%clk 0:02:22.6]} 16. Kxd3 {[%clk 0:02:12.4]} 16... Kd7
{[%clk 0:02:23]} 17. f4 {[%clk 0:02:08.9]} 17... g6 {[%clk 0:02:18.8]} 18. Be3
{[%clk 0:01:31.9]} 18... h5 {[%clk 0:02:15.6]} 19. b3 {[%clk 0:01:27.4]} 19...
a5 {[%clk 0:02:14.3]} 20. Bc5 {[%clk 0:01:24]} 20... Bxc5 {[%clk 0:02:11.6]} 21.
Rxc5 {[%clk 0:01:24.2]} 21... a4 {[%clk 0:02:12.3]} 22. b4 {[%clk 0:01:24]}
22... Rhb8 {[%clk 0:02:01.1]} 23. a3 {[%clk 0:01:19.5]} 23... Rb6 {[%clk
0:01:56.7]} 24. Rhc1 {[%clk 0:01:15.7]} 24... Raa6 {[%clk 0:01:50.9]} 25. Kd4
{[%clk 0:01:15.6]} 25... Ke6 {[%clk 0:01:50.7]} 26. Rb1 {[%clk 0:00:53.3]} 26...
Ra8 {[%clk 0:01:48.7]} 27. b5 {[%clk 0:00:36.2]} 27... Rab8 {[%clk 0:01:48.5]}
28. Rb4 {[%clk 0:00:15.1]} 28... Rxb5 {[%clk 0:01:48.6]} 29. Rxc6+ {[%clk
0:00:11.9]} 29... Ke7 {[%clk 0:01:49.1]} 30. Rxb5 {[%clk 0:00:10.3]} 30... Rxb5
{[%clk 0:01:50]} 31. Rc7+ {[%clk 0:00:10.1]} 31... Ke8 {[%clk 0:01:47.3]} 32.
Ra7 {[%clk 0:00:02.4]} 32... Rb2 {[%clk 0:01:47.8]} 33. Rxa4 {[%clk 0:00:01.3]}
33... Rxg2 {[%clk 0:01:48.2]} 34. Kxd5 {[%clk 0:00:01.5]} 34... Rxh2 {[%clk
0:01:48.2]} 35. Ra8+ {[%clk 0:00:01.3]} 35... Ke7 {[%clk 0:01:48.5]} 36. Ra7+
{[%clk 0:00:01.6]} 36... Kf8 {[%clk 0:01:49.1]} 37. Ra8+ {[%clk 0:00:01.8]}
37... Kg7 {[%clk 0:01:49.7]} 38. Ra7 {[%clk 0:00:01.8]} 38... Rd2+ {[%clk
0:01:50]} 39. Ke4 {[%clk 0:00:01.7]} 39... Kf8 {[%clk 0:01:49.2]} 40. a4 {[%clk
0:00:01.4]} 40... h4 {[%clk 0:01:48.9]} 0-1

[Event "Late-Titled-Tuesday-Blitz-March-26-2024"]
[Site "Chess.com"]
[Date "2024.03.26"]
[Round "2"]
[White "janhelmer03"]
[Black "hellokostya"]
[Result "1-0"]
[WhiteElo "2393"]
[BlackElo "2578"]
[TimeControl "180+1"]
[EndTime "14:17:31 PDT"]
[Termination "janhelmer03 won by resignation"]

1. Nf3 {[%clk 0:03:00.8]} 1... Nf6 {[%clk 0:02:59.6]} 2. c4 {[%clk 0:03:00]}
2... g6 {[%clk 0:02:59.8]} 3. Nc3 {[%clk 0:03:00.3]} 3... Bg7 {[%clk 0:02:59.7]}
4. e4 {[%clk 0:03:00.8]} 4... d6 {[%clk 0:03:00.1]} 5. d4 {[%clk 0:03:01]} 5...
O-O {[%clk 0:03:00.5]} 6. Be2 {[%clk 0:03:01.2]} 6... e5 {[%clk 0:02:59.3]} 7.
O-O {[%clk 0:03:00.8]} 7... h6 {[%clk 0:02:58.7]} 8. dxe5 {[%clk 0:02:58.6]}
8... dxe5 {[%clk 0:02:58.8]} 9. Qxd8 {[%clk 0:02:59.3]} 9... Rxd8 {[%clk
0:02:59.5]} 10. Nxe5 {[%clk 0:03:00.1]} 10... Nxe4 {[%clk 0:02:58.4]} 11. Nxf7
{[%clk 0:02:26.7]} 11... Nxc3 {[%clk 0:02:48.8]} 12. Nxd8 {[%clk 0:02:25.8]}
12... Nxe2+ {[%clk 0:02:48.8]} 13. Kh1 {[%clk 0:02:26.7]} 13... Nxc1 {[%clk
0:02:42.7]} 14. Raxc1 {[%clk 0:02:24.2]} 14... Bf6 {[%clk 0:02:34.3]} 15. Rfe1
{[%clk 0:02:24]} 15... Kg7 {[%clk 0:02:25.8]} 16. Re8 {[%clk 0:02:14.7]} 16...
Bd7 {[%clk 0:02:20.5]} 17. Ne6+ {[%clk 0:02:10.1]} 17... Kf7 {[%clk 0:01:39.1]}
18. Nxc7 {[%clk 0:02:02.2]} 18... Bxe8 {[%clk 0:01:38.9]} 19. Nxa8 {[%clk
0:02:01]} 19... Na6 {[%clk 0:01:38.1]} 20. a3 {[%clk 0:01:37.1]} 20... b6 {[%clk
0:01:25.8]} 21. b4 {[%clk 0:01:35]} 21... Bb2 {[%clk 0:01:25.4]} 22. Rc2 {[%clk
0:01:25.4]} 22... Bxa3 {[%clk 0:01:20.8]} 23. Ra2 {[%clk 0:01:24.9]} 23... Nxb4
{[%clk 0:00:19.2]} 24. Rxa3 {[%clk 0:01:23.9]} 24... a5 {[%clk 0:00:18]} 25.
Nxb6 {[%clk 0:01:22.1]} 25... Nc6 {[%clk 0:00:17.9]} 26. c5 {[%clk 0:01:17.9]}
26... Kf6 {[%clk 0:00:16.8]} 27. Nc4 {[%clk 0:01:16.5]} 27... Ke6 {[%clk
0:00:14.9]} 28. Nxa5 {[%clk 0:01:16.4]} 28... Nd4 {[%clk 0:00:14.9]} 29. Re3+
{[%clk 0:01:13.4]} 29... Kd7 {[%clk 0:00:14.4]} 30. c6+ {[%clk 0:01:12.5]} 1-0

[Event "Late-Titled-Tuesday-Blitz-March-26-2024"]
[Site "Chess.com"]
[Date "2024.03.26"]
[Round "2"]
[White "JiiHart"]
[Black "vladoboch"]
[Result "0-1"]
[WhiteElo "2195"]
[BlackElo "2470"]
[TimeControl "180+1"]
[EndTime "14:17:34 PDT"]
[Termination "vladoboch won by checkmate"]

1. e4 {[%clk 0:03:00.9]} 1... a6 {[%clk 0:02:49.5]} 2. c4 {[%clk 0:02:56.2]}
2... c6 {[%clk 0:02:46.7]} 3. a4 {[%clk 0:02:54.2]} 3... d5 {[%clk 0:02:46.5]}
4. exd5 {[%clk 0:02:46.7]} 4... cxd5 {[%clk 0:02:47.4]} 5. d4 {[%clk 0:02:47.3]}
5... Nf6 {[%clk 0:02:45.7]} 6. Nc3 {[%clk 0:02:47.2]} 6... Nc6 {[%clk
0:02:45.5]} 7. c5 {[%clk 0:02:30.2]} 7... Bg4 {[%clk 0:02:21.2]} 8. f3 {[%clk
0:02:28.1]} 8... Bf5 {[%clk 0:02:12.3]} 9. a5 {[%clk 0:02:10.5]} 9... Nxa5
{[%clk 0:02:03.8]} 10. Qa4+ {[%clk 0:02:09.6]} 10... Nc6 {[%clk 0:02:03.7]} 11.
Bf4 {[%clk 0:01:53.5]} 11... Bd7 {[%clk 0:01:47.2]} 12. Nb5 {[%clk 0:01:27.8]}
12... Rc8 {[%clk 0:01:45.1]} 13. Nc3 {[%clk 0:01:02]} 13... e5 {[%clk
0:01:22.5]} 14. dxe5 {[%clk 0:00:53.1]} 14... Nxe5 {[%clk 0:01:23.4]} 15. Qc2
{[%clk 0:00:46.6]} 15... Ng6 {[%clk 0:01:21.2]} 16. Bd6 {[%clk 0:00:32.4]} 16...
Bxd6 {[%clk 0:01:15.3]} 17. cxd6 {[%clk 0:00:32.8]} 17... O-O {[%clk 0:01:00.3]}
18. Qd2 {[%clk 0:00:26.9]} 18... Re8+ {[%clk 0:00:56.4]} 19. Be2 {[%clk
0:00:24.8]} 19... Qb6 {[%clk 0:00:51.2]} 20. h4 {[%clk 0:00:18.6]} 20... Nxh4
{[%clk 0:00:42.9]} 21. Rxh4 {[%clk 0:00:17.6]} 21... Qxg1# {[%clk 0:00:41.2]}
0-1

[Event "Late-Titled-Tuesday-Blitz-March-26-2024"]
[Site "Chess.com"]
[Date "2024.03.26"]
[Round "2"]
[White "secretsuperstar7"]
[Black "Budisavljevic"]
[Result "0-1"]
[WhiteElo "2499"]
[BlackElo "2775"]
[TimeControl "180+1"]
[EndTime "14:17:36 PDT"]
[Termination "Budisavljevic won on time"]

1. c4 {[%clk 0:02:53.3]} 1... e6 {[%clk 0:02:57.6]} 2. Nc3 {[%clk 0:02:52.8]}
2... d5 {[%clk 0:02:57.1]} 3. e3 {[%clk 0:02:50.3]} 3... Nf6 {[%clk 0:02:56.3]}
4. Nf3 {[%clk 0:02:50.4]} 4... c5 {[%clk 0:02:50.8]} 5. d4 {[%clk 0:02:44.9]}
5... a6 {[%clk 0:02:48.6]} 6. b3 {[%clk 0:02:37.6]} 6... cxd4 {[%clk 0:02:47.7]}
7. exd4 {[%clk 0:02:37.2]} 7... Bb4 {[%clk 0:02:47.5]} 8. Bd2 {[%clk 0:02:37.1]}
8... Nc6 {[%clk 0:02:45.2]} 9. a3 {[%clk 0:02:32.8]} 9... Be7 {[%clk 0:02:42.7]}
10. c5 {[%clk 0:02:28.7]} 10... Ne4 {[%clk 0:02:42.1]} 11. Bd3 {[%clk
0:02:25.7]} 11... f5 {[%clk 0:02:41.2]} 12. O-O {[%clk 0:02:24.8]} 12... Bf6
{[%clk 0:02:41.3]} 13. Ne2 {[%clk 0:02:21.4]} 13... g5 {[%clk 0:02:35.1]} 14.
Be3 {[%clk 0:01:29.4]} 14... Bd7 {[%clk 0:02:07.2]} 15. b4 {[%clk 0:01:17.3]}
15... h5 {[%clk 0:01:57.4]} 16. Ne5 {[%clk 0:01:04.3]} 16... Nxe5 {[%clk
0:01:51.8]} 17. dxe5 {[%clk 0:01:04.1]} 17... Bxe5 {[%clk 0:01:52.5]} 18. Bd4
{[%clk 0:01:03.4]} 18... Bxd4 {[%clk 0:01:43.2]} 19. Nxd4 {[%clk 0:01:03.2]}
19... Qf6 {[%clk 0:01:38.3]} 20. Bxe4 {[%clk 0:00:46]} 20... dxe4 {[%clk
0:01:35.8]} 21. Rc1 {[%clk 0:00:35.5]} 21... Rd8 {[%clk 0:01:34.2]} 22. Qd2
{[%clk 0:00:16.5]} 22... Bb5 {[%clk 0:01:28.6]} 23. Rfd1 {[%clk 0:00:13]} 23...
e5 {[%clk 0:01:28.3]} 24. a4 {[%clk 0:00:07.6]} 24... Bxa4 {[%clk 0:01:26.1]}
25. c6 {[%clk 0:00:04.3]} 25... Bxc6 {[%clk 0:01:23.4]} 26. b5 {[%clk
0:00:01.6]} 26... axb5 {[%clk 0:01:20.1]} 27. Nxc6 {[%clk 0:00:01.7]} 27... Rxd2
{[%clk 0:01:19.9]} 28. Rxd2 {[%clk 0:00:01.3]} 28... bxc6 {[%clk 0:01:20]} 29.
Ra1 {[%clk 0:00:01.3]} 29... O-O {[%clk 0:01:17.5]} 0-1

[Event "Late-Titled-Tuesday-Blitz-March-26-2024"]
[Site "Chess.com"]
[Date "2024.03.26"]
[Round "2"]
[White "mishanick"]
[Black "Laico"]
[Result "1-0"]
[WhiteElo "3051"]
[BlackElo "2405"]
[TimeControl "180+1"]
[EndTime "14:17:42 PDT"]
[Termination "mishanick won by resignation"]

1. d4 {[%clk 0:02:57.3]} 1... e6 {[%clk 0:02:57.8]} 2. c4 {[%clk 0:02:58]} 2...
f5 {[%clk 0:02:55.2]} 3. Nc3 {[%clk 0:02:58.1]} 3... b6 {[%clk 0:02:53.9]} 4.
Bf4 {[%clk 0:02:57.1]} 4... Bb4 {[%clk 0:02:52.6]} 5. e3 {[%clk 0:02:56.4]} 5...
Bxc3+ {[%clk 0:02:51.3]} 6. bxc3 {[%clk 0:02:56.5]} 6... Bb7 {[%clk 0:02:52.2]}
7. Nf3 {[%clk 0:02:56.7]} 7... Nf6 {[%clk 0:02:52.5]} 8. Bd3 {[%clk 0:02:57.3]}
8... O-O {[%clk 0:02:52.6]} 9. Qc2 {[%clk 0:02:53.6]} 9... d6 {[%clk 0:02:46.7]}
10. Bg5 {[%clk 0:02:51.2]} 10... Nbd7 {[%clk 0:02:45.3]} 11. d5 {[%clk
0:02:49.9]} 11... Nc5 {[%clk 0:02:34.3]} 12. dxe6 {[%clk 0:02:46.9]} 12... Nxd3+
{[%clk 0:02:34.4]} 13. Qxd3 {[%clk 0:02:47.8]} 13... Be4 {[%clk 0:02:22.4]} 14.
Qd2 {[%clk 0:02:47.4]} 14... Bxf3 {[%clk 0:02:15.6]} 15. gxf3 {[%clk 0:02:47.4]}
15... Qe7 {[%clk 0:02:16.1]} 16. Rg1 {[%clk 0:02:35.7]} 16... Qxe6 {[%clk
0:02:14.3]} 17. Qd4 {[%clk 0:02:36.3]} 17... Rae8 {[%clk 0:02:10]} 18. O-O-O
{[%clk 0:02:35.8]} 18... Rf7 {[%clk 0:02:04]} 19. Kb2 {[%clk 0:02:31.4]} 19...
Nd7 {[%clk 0:02:01.9]} 20. Bf4 {[%clk 0:02:20.9]} 20... Ne5 {[%clk 0:01:53]} 21.
Bxe5 {[%clk 0:02:16.5]} 21... Qxe5 {[%clk 0:01:53.1]} 22. Qd5 {[%clk 0:02:14.9]}
22... Kf8 {[%clk 0:01:47.9]} 23. f4 {[%clk 0:02:13.1]} 23... Qe4 {[%clk
0:01:47.2]} 24. Kb3 {[%clk 0:02:10.4]} 24... a5 {[%clk 0:01:24.9]} 25. Rd4
{[%clk 0:02:09.6]} 25... Qe7 {[%clk 0:01:18.8]} 26. Qc6 {[%clk 0:02:08.5]} 26...
Qe6 {[%clk 0:01:13.4]} 27. h4 {[%clk 0:02:06.6]} 27... b5 {[%clk 0:01:08]} 28.
Qxb5 {[%clk 0:01:48.7]} 28... c5 {[%clk 0:01:08]} 29. Rd5 {[%clk 0:01:47.6]}
29... Qc8 {[%clk 0:00:58.5]} 30. Rxd6 {[%clk 0:01:31.4]} 30... Rb7 {[%clk
0:00:53.2]} 31. Rb6 {[%clk 0:01:31.8]} 31... Ree7 {[%clk 0:00:47.7]} 32. Ka3
{[%clk 0:01:30.3]} 32... Rxb6 {[%clk 0:00:19]} 33. Qxb6 {[%clk 0:01:30.7]} 33...
Rb7 {[%clk 0:00:19.5]} 34. Qd6+ {[%clk 0:01:31.2]} 34... Kf7 {[%clk 0:00:19.8]}
35. Qe5 {[%clk 0:01:23.8]} 35... g6 {[%clk 0:00:18.9]} 36. h5 {[%clk 0:01:21.8]}
36... Qc6 {[%clk 0:00:14.4]} 37. hxg6+ {[%clk 0:01:19.1]} 37... hxg6 {[%clk
0:00:15.3]} 38. Qd5+ {[%clk 0:01:18.8]} 1-0